[Event "Titled Tuesday Blitz August 16 Late 2022"]
[White "Begmuratov, Khumoyun"]
[Black "Vusatiuk, Vladimir"]
[WhiteFideId "14210207"]
[BlackFideId "14118610"]
[WhiteElo "2353"]
[BlackElo "2308"]
[Result "1-0"]
[Round "03"]
[TimeControl "180+1"]
[Date "2022.08.18"]
[WhiteClock "0:00:00"]
[BlackClock "0:00:00"]

1. e4 {[%clk 0:00:00]}  e6 {[%clk 0:00:00]} 2. d4 {[%clk 0:00:00]}  d5 {[%clk 0:00:00]} 3. Nc3 {[%clk 0:00:00]}  Nf6 {[%clk 0:00:00]} 4. Bg5 {[%clk 0:00:00]}  dxe4 {[%clk 0:00:00]} 5. Nxe4 {[%clk 0:00:00]}  Be7 {[%clk 0:00:00]} 6. Bxf6 {[%clk 0:00:00]}  gxf6 {[%clk 0:00:00]} 7. Nf3 {[%clk 0:00:00]}  f5 {[%clk 0:00:00]} 8. Ng3 {[%clk 0:00:00]}  c5 {[%clk 0:00:00]} 9. Bb5+ {[%clk 0:00:00]}  Nc6 {[%clk 0:00:00]} 10. O-O {[%clk 0:00:00]}  Bd7 {[%clk 0:00:00]} 11. d5 {[%clk 0:00:00]}  Nb4 {[%clk 0:00:00]} 12. Bxd7+ {[%clk 0:00:00]}  Qxd7 {[%clk 0:00:00]} 13. dxe6 {[%clk 0:00:00]}  Qxd1 {[%clk 0:00:00]} 14. exf7+ {[%clk 0:00:00]}  Kxf7 {[%clk 0:00:00]} 15. Rfxd1 {[%clk 0:00:00]}  Nxc2 {[%clk 0:00:00]} 16. Rac1 {[%clk 0:00:00]}  Nd4 {[%clk 0:00:00]} 17. Nxd4 {[%clk 0:00:00]}  cxd4 {[%clk 0:00:00]} 18. Nxf5 {[%clk 0:00:00]}  Bf6 {[%clk 0:00:00]} 19. Rc7+ {[%clk 0:00:00]}  Kg6 {[%clk 0:00:00]} 20. Ng3 {[%clk 0:00:00]}  b5 {[%clk 0:00:00]} 21. Ne4 {[%clk 0:00:00]}  Rhc8 {[%clk 0:00:00]} 22. Rd7 {[%clk 0:00:00]}  Be5 {[%clk 0:00:00]} 23. Rd5 {[%clk 0:00:00]}  Bh8 {[%clk 0:00:00]} 24. Rxb5 {[%clk 0:00:00]}  Rab8 {[%clk 0:00:00]} 25. Rg5+ {[%clk 0:00:00]}  Kh6 {[%clk 0:00:00]} 26. h4 {[%clk 0:00:00]}  Rxb2 {[%clk 0:00:00]} 27. Nd6 {[%clk 0:00:00]}  Rf8 {[%clk 0:00:00]} 28. Rc1 {[%clk 0:00:00]}  Rfxf2 {[%clk 0:00:00]} 29. Rc6 {[%clk 0:00:00]}  Bf6 {[%clk 0:00:00]} 30. Nf7# {[%clk 0:00:00]} 1-0


[Site "https://www.chess.com"]

[Event "Titled Tuesday Blitz August 16 Late 2022"]
[White "Bodnar, Nikolay"]
[Black "Sourath Biswas"]
[WhiteFideId "14106469"]
[BlackFideId "35091484"]
[WhiteElo "2441"]
[BlackElo "2302"]
[Result "1-0"]
[Round "03"]
[TimeControl "180+1"]
[Date "2022.08.18"]
[WhiteClock "0:00:00"]
[BlackClock "0:00:00"]

1. c4 {[%clk 0:00:00]}  Nf6 {[%clk 0:00:00]} 2. g3 {[%clk 0:00:00]}  g6 {[%clk 0:00:00]} 3. Bg2 {[%clk 0:00:00]}  Bg7 {[%clk 0:00:00]} 4. Nc3 {[%clk 0:00:00]}  O-O {[%clk 0:00:00]} 5. d3 {[%clk 0:00:00]}  d6 {[%clk 0:00:00]} 6. Nf3 {[%clk 0:00:00]}  e5 {[%clk 0:00:00]} 7. O-O {[%clk 0:00:00]}  Nc6 {[%clk 0:00:00]} 8. Rb1 {[%clk 0:00:00]}  a5 {[%clk 0:00:00]} 9. a3 {[%clk 0:00:00]}  Re8 {[%clk 0:00:00]} 10. b4 {[%clk 0:00:00]}  axb4 {[%clk 0:00:00]} 11. axb4 {[%clk 0:00:00]}  e4 {[%clk 0:00:00]} 12. dxe4 {[%clk 0:00:00]}  Nxe4 {[%clk 0:00:00]} 13. Nxe4 {[%clk 0:00:00]}  Rxe4 {[%clk 0:00:00]} 14. Nd2 {[%clk 0:00:00]}  Re8 {[%clk 0:00:00]} 15. b5 {[%clk 0:00:00]}  Ne5 {[%clk 0:00:00]} 16. Bb2 {[%clk 0:00:00]}  Bf5 {[%clk 0:00:00]} 17. e4 {[%clk 0:00:00]}  Bg4 {[%clk 0:00:00]} 18. f3 {[%clk 0:00:00]}  Be6 {[%clk 0:00:00]} 19. Qc2 {[%clk 0:00:00]}  Ra2 {[%clk 0:00:00]} 20. Qb3 {[%clk 0:00:00]}  Rxb2 {[%clk 0:00:00]} 21. Rxb2 {[%clk 0:00:00]}  Nxc4 {[%clk 0:00:00]} 22. Nxc4 {[%clk 0:00:00]}  Bxc4 {[%clk 0:00:00]} 23. Qxc4 {[%clk 0:00:00]}  Bxb2 {[%clk 0:00:00]} 24. f4 {[%clk 0:00:00]}  c6 {[%clk 0:00:00]} 25. bxc6 {[%clk 0:00:00]}  Qb6+ {[%clk 0:00:00]} 26. Kh1 {[%clk 0:00:00]}  Qxc6 {[%clk 0:00:00]} 27. Qb3 {[%clk 0:00:00]}  Qc3 {[%clk 0:00:00]} 28. Qxb7 {[%clk 0:00:00]}  Qd3 {[%clk 0:00:00]} 29. Qxb2 {[%clk 0:00:00]} 1-0


[Site "https://www.chess.com"]

[Event "Titled Tuesday Blitz August 16 Late 2022"]
[White "Capp, Stephen"]
[Black "Postnikov, Daniil"]
[WhiteFideId "2027089"]
[BlackFideId "4166329"]
[WhiteElo "1920"]
[BlackElo "2360"]
[Result "0-1"]
[Round "03"]
[TimeControl "180+1"]
[Date "2022.08.18"]
[WhiteClock "0:00:00"]
[BlackClock "0:00:00"]

1. e4 {[%clk 0:00:00]}  e6 {[%clk 0:00:00]} 2. d4 {[%clk 0:00:00]}  d5 {[%clk 0:00:00]} 3. e5 {[%clk 0:00:00]}  c5 {[%clk 0:00:00]} 4. c3 {[%clk 0:00:00]}  Nc6 {[%clk 0:00:00]} 5. Nf3 {[%clk 0:00:00]}  Qb6 {[%clk 0:00:00]} 6. Bd3 {[%clk 0:00:00]}  cxd4 {[%clk 0:00:00]} 7. cxd4 {[%clk 0:00:00]}  Bd7 {[%clk 0:00:00]} 8. O-O {[%clk 0:00:00]}  Nxd4 {[%clk 0:00:00]} 9. Nxd4 {[%clk 0:00:00]}  Qxd4 {[%clk 0:00:00]} 10. Qe2 {[%clk 0:00:00]}  Ne7 {[%clk 0:00:00]} 11. Kh1 {[%clk 0:00:00]}  Nc6 {[%clk 0:00:00]} 12. f4 {[%clk 0:00:00]}  Bc5 {[%clk 0:00:00]} 13. Nc3 {[%clk 0:00:00]}  a6 {[%clk 0:00:00]} 14. a3 {[%clk 0:00:00]}  Ba7 {[%clk 0:00:00]} 15. Bd2 {[%clk 0:00:00]}  O-O {[%clk 0:00:00]} 16. Rf3 {[%clk 0:00:00]}  Qb6 {[%clk 0:00:00]} 17. b4 {[%clk 0:00:00]}  g6 {[%clk 0:00:00]} 18. f5 {[%clk 0:00:00]}  Nd4 {[%clk 0:00:00]} 19. Qe3 {[%clk 0:00:00]}  Nxf3 {[%clk 0:00:00]} 20. Qh6 {[%clk 0:00:00]}  gxf5 {[%clk 0:00:00]} 21. gxf3 {[%clk 0:00:00]}  f6 {[%clk 0:00:00]} 22. Ne2 {[%clk 0:00:00]}  Rf7 {[%clk 0:00:00]} 23. exf6 {[%clk 0:00:00]}  Kh8 {[%clk 0:00:00]} 24. Rg1 {[%clk 0:00:00]}  Rg8 {[%clk 0:00:00]} 25. Bg5 {[%clk 0:00:00]}  Qf2 {[%clk 0:00:00]} 26. Qh5 {[%clk 0:00:00]}  Be8 {[%clk 0:00:00]} 27. Be3 {[%clk 0:00:00]}  Bxe3 {[%clk 0:00:00]} 28. Rxg8+ {[%clk 0:00:00]}  Kxg8 {[%clk 0:00:00]} 0-1


[Site "https://www.chess.com"]

[Event "Titled Tuesday Blitz August 16 Late 2022"]
[White "Coelho, Ramyres Santana"]
[Black "Ozates, Tuna"]
[WhiteFideId "2120690"]
[BlackFideId "6354521"]
[WhiteElo "1888"]
[BlackElo "1887"]
[Result "0-1"]
[Round "03"]
[TimeControl "180+1"]
[Date "2022.08.18"]
[WhiteClock "0:00:00"]
[BlackClock "0:00:00"]

1. e4 {[%clk 0:00:00]}  c5 {[%clk 0:00:00]} 2. Nf3 {[%clk 0:00:00]}  Nc6 {[%clk 0:00:00]} 3. d4 {[%clk 0:00:00]}  cxd4 {[%clk 0:00:00]} 4. c3 {[%clk 0:00:00]}  d3 {[%clk 0:00:00]} 5. Bxd3 {[%clk 0:00:00]}  g6 {[%clk 0:00:00]} 6. O-O {[%clk 0:00:00]}  Bg7 {[%clk 0:00:00]} 7. Qe2 {[%clk 0:00:00]}  d6 {[%clk 0:00:00]} 8. h3 {[%clk 0:00:00]}  Nf6 {[%clk 0:00:00]} 9. Rd1 {[%clk 0:00:00]}  Nd7 {[%clk 0:00:00]} 10. b4 {[%clk 0:00:00]}  O-O {[%clk 0:00:00]} 11. b5 {[%clk 0:00:00]}  Nce5 {[%clk 0:00:00]} 12. Nxe5 {[%clk 0:00:00]}  Nxe5 {[%clk 0:00:00]} 13. Bc2 {[%clk 0:00:00]}  Be6 {[%clk 0:00:00]} 14. f4 {[%clk 0:00:00]}  Bc4 {[%clk 0:00:00]} 15. Qf2 {[%clk 0:00:00]}  Nd7 {[%clk 0:00:00]} 16. a4 {[%clk 0:00:00]}  a6 {[%clk 0:00:00]} 17. bxa6 {[%clk 0:00:00]}  Bxa6 {[%clk 0:00:00]} 18. Qf3 {[%clk 0:00:00]}  Qc7 {[%clk 0:00:00]} 19. Bb2 {[%clk 0:00:00]}  Rfc8 {[%clk 0:00:00]} 20. Bd3 {[%clk 0:00:00]}  Bxd3 {[%clk 0:00:00]} 21. Rxd3 {[%clk 0:00:00]}  Nc5 {[%clk 0:00:00]} 22. Re3 {[%clk 0:00:00]}  Nxa4 {[%clk 0:00:00]} 23. Bc1 {[%clk 0:00:00]}  Ra6 {[%clk 0:00:00]} 24. f5 {[%clk 0:00:00]}  Nxc3 {[%clk 0:00:00]} 25. Rxa6 {[%clk 0:00:00]}  Nxb1 {[%clk 0:00:00]} 26. Re1 {[%clk 0:00:00]}  bxa6 {[%clk 0:00:00]} 27. fxg6 {[%clk 0:00:00]}  hxg6 {[%clk 0:00:00]} 28. Rf1 {[%clk 0:00:00]}  e6 {[%clk 0:00:00]} 29. Bf4 {[%clk 0:00:00]}  Nc3 {[%clk 0:00:00]} 30. Bxd6 {[%clk 0:00:00]}  Qd7 {[%clk 0:00:00]} 31. Bg3 {[%clk 0:00:00]}  a5 {[%clk 0:00:00]} 32. Kh1 {[%clk 0:00:00]}  a4 {[%clk 0:00:00]} 33. Be1 {[%clk 0:00:00]}  a3 {[%clk 0:00:00]} 34. Bxc3 {[%clk 0:00:00]}  Bxc3 {[%clk 0:00:00]} 35. Rd1 {[%clk 0:00:00]}  Qxd1+ {[%clk 0:00:00]} 36. Qxd1 {[%clk 0:00:00]}  a2 {[%clk 0:00:00]} 37. Qd7 {[%clk 0:00:00]}  a1=Q+ {[%clk 0:00:00]} 38. Kh2 {[%clk 0:00:00]}  Be5+ {[%clk 0:00:00]} 39. g3 {[%clk 0:00:00]}  Rc2+ {[%clk 0:00:00]} 0-1


[Site "https://www.chess.com"]

[Event "Titled Tuesday Blitz August 16 Late 2022"]
[White "Csonka, Balazs"]
[Black "Paravyan, David"]
[WhiteFideId "742910"]
[BlackFideId "4194985"]
[WhiteElo "2404"]
[BlackElo "2569"]
[Result "0-1"]
[Round "03"]
[TimeControl "180+1"]
[Date "2022.08.16"]
[WhiteClock "0:00:04"]
[BlackClock "0:00:21"]

1. d4 {[%clk 0:03:00]}  Nf6 {[%clk 0:02:59]} 2. c4 {[%clk 0:03:00]}  g6 {[%clk 0:03:00]} 3. g3 {[%clk 0:02:58]}  Bg7 {[%clk 0:02:59]} 4. Bg2 {[%clk 0:02:58]}  d5 {[%clk 0:02:59]} 5. cxd5 {[%clk 0:02:53]}  Nxd5 {[%clk 0:03:00]} 6. Nf3 {[%clk 0:02:52]}  O-O {[%clk 0:03:00]} 7. O-O {[%clk 0:02:52]}  Nc6 {[%clk 0:02:59]} 8. e3 {[%clk 0:02:46]}  e5 {[%clk 0:02:58]} 9. Nxe5 {[%clk 0:02:39]}  Nxe5 {[%clk 0:02:57]} 10. dxe5 {[%clk 0:02:40]}  c6 {[%clk 0:02:56]} 11. f4 {[%clk 0:02:32]}  Qb6 {[%clk 0:02:39]} 12. Qd4 {[%clk 0:02:28]}  Nb4 {[%clk 0:02:36]} 13. Na3 {[%clk 0:02:04]}  Be6 {[%clk 0:02:30]} 14. b3 {[%clk 0:01:33]}  Rfd8 {[%clk 0:02:23]} 15. Qxb6 {[%clk 0:01:16]}  axb6 {[%clk 0:02:24]} 16. Nc4 {[%clk 0:01:15]}  Bf8 {[%clk 0:02:24]} 17. Bb2 {[%clk 0:00:59]}  b5 {[%clk 0:02:19]} 18. Nd6 {[%clk 0:00:56]}  Bxd6 {[%clk 0:02:19]} 19. exd6 {[%clk 0:00:57]}  Rxd6 {[%clk 0:02:19]} 20. Rfd1 {[%clk 0:00:51]}  Rxd1+ {[%clk 0:02:01]} 21. Rxd1 {[%clk 0:00:52]}  f5 {[%clk 0:02:01]} 22. a3 {[%clk 0:00:34]}  Nd5 {[%clk 0:02:00]} 23. Bxd5 {[%clk 0:00:26]}  Bxd5 {[%clk 0:01:59]} 24. b4 {[%clk 0:00:27]}  Kf7 {[%clk 0:01:59]} 25. Kf2 {[%clk 0:00:26]}  Ke6 {[%clk 0:01:59]} 26. Rd2 {[%clk 0:00:26]}  h6 {[%clk 0:01:54]} 27. h4 {[%clk 0:00:21]}  b6 {[%clk 0:01:48]} 28. Rd1 {[%clk 0:00:20]}  c5 {[%clk 0:01:47]} 29. Rc1 {[%clk 0:00:20]}  Bc4 {[%clk 0:01:45]} 30. Rd1 {[%clk 0:00:19]}  Ra4 {[%clk 0:01:40]} 31. bxc5 {[%clk 0:00:13]}  bxc5 {[%clk 0:01:40]} 32. Rc1 {[%clk 0:00:13]}  Kd5 {[%clk 0:01:39]} 33. Rd1+ {[%clk 0:00:14]}  Kc6 {[%clk 0:01:40]} 34. Rc1 {[%clk 0:00:13]}  Ra8 {[%clk 0:01:34]} 35. Rd1 {[%clk 0:00:12]}  b4 {[%clk 0:01:34]} 36. axb4 {[%clk 0:00:11]}  Ra2 {[%clk 0:01:31]} 37. Rd2 {[%clk 0:00:11]}  cxb4 {[%clk 0:01:32]} 38. Ke1 {[%clk 0:00:10]}  Kb5 {[%clk 0:01:30]} 39. Bg7 {[%clk 0:00:08]}  Ra3 {[%clk 0:01:27]} 40. Bxh6 {[%clk 0:00:05]}  Rxe3+ {[%clk 0:01:27]} 41. Kf2 {[%clk 0:00:06]}  Re7 {[%clk 0:01:14]} 42. Bf8 {[%clk 0:00:06]}  Rf7 {[%clk 0:01:14]} 43. Bd6 {[%clk 0:00:04]}  b3 {[%clk 0:01:13]} 44. Be5 {[%clk 0:00:04]}  Ra7 {[%clk 0:01:14]} 45. Rd8 {[%clk 0:00:03]}  Ra2+ {[%clk 0:01:06]} 46. Ke3 {[%clk 0:00:04]}  Re2+ {[%clk 0:01:06]} 47. Kf3 {[%clk 0:00:04]}  Rc2 {[%clk 0:00:41]} 48. Rb8+ {[%clk 0:00:04]}  Kc6 {[%clk 0:00:41]} 49. Rc8+ {[%clk 0:00:04]}  Kd7 {[%clk 0:00:39]} 50. Rb8 {[%clk 0:00:04]}  Ke6 {[%clk 0:00:36]} 51. Ke3 {[%clk 0:00:04]}  Kd5 {[%clk 0:00:32]} 52. Rd8+ {[%clk 0:00:04]}  Kc6 {[%clk 0:00:32]} 53. Rc8+ {[%clk 0:00:04]}  Kb7 {[%clk 0:00:33]} 54. Rb8+ {[%clk 0:00:05]}  Ka7 {[%clk 0:00:33]} 55. Rb4 {[%clk 0:00:05]}  Ka6 {[%clk 0:00:33]} 56. Rb8 {[%clk 0:00:04]}  Bb5 {[%clk 0:00:32]} 57. Bd4 {[%clk 0:00:04]}  b2 {[%clk 0:00:29]} 58. Bxb2 {[%clk 0:00:04]}  Rxb2 {[%clk 0:00:29]} 59. Kd4 {[%clk 0:00:05]}  Rb3 {[%clk 0:00:26]} 60. Kc5 {[%clk 0:00:02]}  Rc3+ {[%clk 0:00:20]} 61. Kb4 {[%clk 0:00:03]}  Rc4+ {[%clk 0:00:21]} 62. Kb3 {[%clk 0:00:03]}  Rc6 {[%clk 0:00:20]} 63. Kb4 {[%clk 0:00:02]}  Be2 {[%clk 0:00:20]} 64. Rg8 {[%clk 0:00:02]}  Bh5 {[%clk 0:00:20]} 65. Rg7 {[%clk 0:00:02]}  Kb6 {[%clk 0:00:20]} 66. Rg8 {[%clk 0:00:02]}  Re6 {[%clk 0:00:21]} 67. Rd8 {[%clk 0:00:02]}  Re4+ {[%clk 0:00:19]} 68. Kc3 {[%clk 0:00:02]}  Re3+ {[%clk 0:00:20]} 69. Rd3 {[%clk 0:00:03]}  Rxd3+ {[%clk 0:00:20]} 70. Kxd3 {[%clk 0:00:04]}  Kc5 {[%clk 0:00:21]} 0-1


[Site "https://www.chess.com"]

[Event "Titled Tuesday Blitz August 16 Late 2022"]
[White "D`Arruda, Ricardo D."]
[Black "Romanchuk, Viktor"]
[WhiteFideId "100692"]
[BlackFideId "14109271"]
[WhiteElo "2271"]
[BlackElo "2242"]
[Result "0-1"]
[Round "03"]
[TimeControl "180+1"]
[Date "2022.08.18"]
[WhiteClock "0:00:00"]
[BlackClock "0:00:00"]

1. d4 {[%clk 0:00:00]}  d5 {[%clk 0:00:00]} 2. Nf3 {[%clk 0:00:00]}  Nf6 {[%clk 0:00:00]} 3. c4 {[%clk 0:00:00]}  c6 {[%clk 0:00:00]} 4. Nc3 {[%clk 0:00:00]}  e6 {[%clk 0:00:00]} 5. e3 {[%clk 0:00:00]}  Nbd7 {[%clk 0:00:00]} 6. Bd3 {[%clk 0:00:00]}  Be7 {[%clk 0:00:00]} 7. O-O {[%clk 0:00:00]}  O-O {[%clk 0:00:00]} 8. e4 {[%clk 0:00:00]}  dxe4 {[%clk 0:00:00]} 9. Nxe4 {[%clk 0:00:00]}  c5 {[%clk 0:00:00]} 10. Nxc5 {[%clk 0:00:00]}  Nxc5 {[%clk 0:00:00]} 11. dxc5 {[%clk 0:00:00]}  Bxc5 {[%clk 0:00:00]} 12. Bg5 {[%clk 0:00:00]}  b6 {[%clk 0:00:00]} 13. Qe2 {[%clk 0:00:00]}  Bb7 {[%clk 0:00:00]} 14. Rad1 {[%clk 0:00:00]}  Qc7 {[%clk 0:00:00]} 15. Bxf6 {[%clk 0:00:00]}  gxf6 {[%clk 0:00:00]} 16. Be4 {[%clk 0:00:00]}  Rfd8 {[%clk 0:00:00]} 17. h3 {[%clk 0:00:00]}  Kg7 {[%clk 0:00:00]} 18. a3 {[%clk 0:00:00]}  a5 {[%clk 0:00:00]} 19. Bxb7 {[%clk 0:00:00]}  Qxb7 {[%clk 0:00:00]} 20. Rd3 {[%clk 0:00:00]}  Rac8 {[%clk 0:00:00]} 21. Rfd1 {[%clk 0:00:00]}  Qc7 {[%clk 0:00:00]} 22. Qe4 {[%clk 0:00:00]}  Be7 {[%clk 0:00:00]} 23. Rxd8 {[%clk 0:00:00]}  Rxd8 {[%clk 0:00:00]} 24. Rxd8 {[%clk 0:00:00]}  Qxd8 {[%clk 0:00:00]} 25. Qg4+ {[%clk 0:00:00]}  Kf8 {[%clk 0:00:00]} 26. Qh5 {[%clk 0:00:00]}  Kg7 {[%clk 0:00:00]} 27. Qg4+ {[%clk 0:00:00]}  Kf8 {[%clk 0:00:00]} 28. Qh5 {[%clk 0:00:00]}  Qd1+ {[%clk 0:00:00]} 29. Kh2 {[%clk 0:00:00]}  Bd6+ {[%clk 0:00:00]} 30. g3 {[%clk 0:00:00]}  Qe2 {[%clk 0:00:00]} 31. Kg2 {[%clk 0:00:00]}  Bc5 {[%clk 0:00:00]} 32. Qh6+ {[%clk 0:00:00]}  Ke7 {[%clk 0:00:00]} 33. Qd2 {[%clk 0:00:00]}  Qxc4 {[%clk 0:00:00]} 34. h4 {[%clk 0:00:00]}  Qe4 {[%clk 0:00:00]} 35. Qc3 {[%clk 0:00:00]}  Qe2 {[%clk 0:00:00]} 36. Qd2 {[%clk 0:00:00]}  Qxd2 {[%clk 0:00:00]} 37. Nxd2 {[%clk 0:00:00]}  Kd6 {[%clk 0:00:00]} 38. Kf3 {[%clk 0:00:00]}  Kd5 {[%clk 0:00:00]} 39. Ne4 {[%clk 0:00:00]}  Be7 {[%clk 0:00:00]} 40. Ke3 {[%clk 0:00:00]}  Kc4 {[%clk 0:00:00]} 41. Nd2+ {[%clk 0:00:00]}  Kd5 {[%clk 0:00:00]} 42. Kd3 {[%clk 0:00:00]}  f5 {[%clk 0:00:00]} 43. a4 {[%clk 0:00:00]}  Bc5 {[%clk 0:00:00]} 44. Ke2 {[%clk 0:00:00]}  h6 {[%clk 0:00:00]} 45. b3 {[%clk 0:00:00]}  Kd4 {[%clk 0:00:00]} 46. Nf3+ {[%clk 0:00:00]}  Kc3 {[%clk 0:00:00]} 47. Ne5 {[%clk 0:00:00]}  f6 {[%clk 0:00:00]} 48. Nd7 {[%clk 0:00:00]}  Kxb3 {[%clk 0:00:00]} 49. Nxf6 {[%clk 0:00:00]}  Kxa4 {[%clk 0:00:00]} 50. Ng8 {[%clk 0:00:00]}  Bf8 {[%clk 0:00:00]} 0-1


[Site "https://www.chess.com"]

[Event "Titled Tuesday Blitz August 16 Late 2022"]
[White "Diem, Thomas"]
[Black "Bringas Gomez, Artai"]
[WhiteFideId "30937841"]
[BlackFideId "24534064"]
[WhiteElo "1998"]
[BlackElo "2039"]
[Result "0-1"]
[Round "03"]
[TimeControl "180+1"]
[Date "2022.08.18"]
[WhiteClock "0:00:00"]
[BlackClock "0:00:00"]

1. c4 {[%clk 0:00:00]}  b6 {[%clk 0:00:00]} 2. Nf3 {[%clk 0:00:00]}  Bb7 {[%clk 0:00:00]} 3. e3 {[%clk 0:00:00]}  g6 {[%clk 0:00:00]} 4. Nc3 {[%clk 0:00:00]}  Bg7 {[%clk 0:00:00]} 5. Qc2 {[%clk 0:00:00]}  e6 {[%clk 0:00:00]} 6. Be2 {[%clk 0:00:00]}  Ne7 {[%clk 0:00:00]} 7. O-O {[%clk 0:00:00]}  O-O {[%clk 0:00:00]} 8. b3 {[%clk 0:00:00]}  d6 {[%clk 0:00:00]} 9. Bb2 {[%clk 0:00:00]}  Nd7 {[%clk 0:00:00]} 10. d4 {[%clk 0:00:00]}  a6 {[%clk 0:00:00]} 11. a4 {[%clk 0:00:00]}  a5 {[%clk 0:00:00]} 12. Rad1 {[%clk 0:00:00]}  h6 {[%clk 0:00:00]} 13. Ne4 {[%clk 0:00:00]}  Kh7 {[%clk 0:00:00]} 14. Ng3 {[%clk 0:00:00]}  f5 {[%clk 0:00:00]} 15. h4 {[%clk 0:00:00]}  Nf6 {[%clk 0:00:00]} 16. Bd3 {[%clk 0:00:00]}  Bxf3 {[%clk 0:00:00]} 17. gxf3 {[%clk 0:00:00]}  d5 {[%clk 0:00:00]} 18. Ba3 {[%clk 0:00:00]}  Rf7 {[%clk 0:00:00]} 19. Ne2 {[%clk 0:00:00]}  Neg8 {[%clk 0:00:00]} 20. Nf4 {[%clk 0:00:00]}  Qd7 {[%clk 0:00:00]} 21. h5 {[%clk 0:00:00]}  gxh5 {[%clk 0:00:00]} 22. Nxe6 {[%clk 0:00:00]}  Ne4 {[%clk 0:00:00]} 23. fxe4 {[%clk 0:00:00]}  Qxe6 {[%clk 0:00:00]} 24. exf5 {[%clk 0:00:00]}  Qf6 {[%clk 0:00:00]} 25. cxd5 {[%clk 0:00:00]}  Qg5+ {[%clk 0:00:00]} 26. Kh1 {[%clk 0:00:00]}  Qh4+ {[%clk 0:00:00]} 27. Kg2 {[%clk 0:00:00]}  Qg4+ {[%clk 0:00:00]} 28. Kh2 {[%clk 0:00:00]}  Qh4+ {[%clk 0:00:00]} 29. Kg2 {[%clk 0:00:00]}  Bf6 {[%clk 0:00:00]} 30. Rg1 {[%clk 0:00:00]}  Ne7 {[%clk 0:00:00]} 31. Kf1 {[%clk 0:00:00]}  Nxd5 {[%clk 0:00:00]} 32. Be4 {[%clk 0:00:00]}  Rd8 {[%clk 0:00:00]} 33. Qc6 {[%clk 0:00:00]}  Qxe4 {[%clk 0:00:00]} 0-1


[Site "https://www.chess.com"]

[Event "Titled Tuesday Blitz August 16 Late 2022"]
[White "Dilanyan, Grigor"]
[Black "Batsiashvili, Nino"]
[WhiteFideId "13303570"]
[BlackFideId "13602993"]
[WhiteElo "2247"]
[BlackElo "2466"]
[Result "1-0"]
[Round "03"]
[TimeControl "180+1"]
[Date "2022.08.18"]
[WhiteClock "0:00:00"]
[BlackClock "0:00:00"]

1. d4 {[%clk 0:00:00]}  f5 {[%clk 0:00:00]} 2. Bg5 {[%clk 0:00:00]}  g6 {[%clk 0:00:00]} 3. h4 {[%clk 0:00:00]}  Bg7 {[%clk 0:00:00]} 4. h5 {[%clk 0:00:00]}  Nh6 {[%clk 0:00:00]} 5. hxg6 {[%clk 0:00:00]}  hxg6 {[%clk 0:00:00]} 6. Nf3 {[%clk 0:00:00]}  Nc6 {[%clk 0:00:00]} 7. Nc3 {[%clk 0:00:00]}  d6 {[%clk 0:00:00]} 8. Qd2 {[%clk 0:00:00]}  Nf7 {[%clk 0:00:00]} 9. Rxh8+ {[%clk 0:00:00]}  Bxh8 {[%clk 0:00:00]} 10. Bh4 {[%clk 0:00:00]}  Kf8 {[%clk 0:00:00]} 11. O-O-O {[%clk 0:00:00]}  Qe8 {[%clk 0:00:00]} 12. e4 {[%clk 0:00:00]}  e5 {[%clk 0:00:00]} 13. dxe5 {[%clk 0:00:00]}  Ncxe5 {[%clk 0:00:00]} 14. Nxe5 {[%clk 0:00:00]}  Qxe5 {[%clk 0:00:00]} 15. Bc4 {[%clk 0:00:00]}  Be6 {[%clk 0:00:00]} 16. f4 {[%clk 0:00:00]}  Qxc3 {[%clk 0:00:00]} 17. bxc3 {[%clk 0:00:00]}  Bxc4 {[%clk 0:00:00]} 18. exf5 {[%clk 0:00:00]}  gxf5 {[%clk 0:00:00]} 19. g4 {[%clk 0:00:00]}  Re8 {[%clk 0:00:00]} 20. Re1 {[%clk 0:00:00]}  Re4 {[%clk 0:00:00]} 21. gxf5 {[%clk 0:00:00]}  d5 {[%clk 0:00:00]} 22. Rxe4 {[%clk 0:00:00]}  dxe4 {[%clk 0:00:00]} 23. Qg2 {[%clk 0:00:00]}  e3 {[%clk 0:00:00]} 24. f6 {[%clk 0:00:00]}  e2 {[%clk 0:00:00]} 25. Qe4 {[%clk 0:00:00]}  Nd6 {[%clk 0:00:00]} 26. Qe7+ {[%clk 0:00:00]}  Kg8 {[%clk 0:00:00]} 27. Kd2 {[%clk 0:00:00]}  a5 {[%clk 0:00:00]} 28. Qd8+ {[%clk 0:00:00]}  Kh7 {[%clk 0:00:00]} 29. Qxc7+ {[%clk 0:00:00]}  Kg6 {[%clk 0:00:00]} 30. Qxd6 {[%clk 0:00:00]} 1-0


[Site "https://www.chess.com"]

[Event "Titled Tuesday Blitz August 16 Late 2022"]
[White "Do Nascimento,Christian Almeida"]
[Black "Sanchez, Robert"]
[WhiteFideId "2143801"]
[BlackFideId "2034360"]
[WhiteElo "2112"]
[BlackElo "1966"]
[Result "1-0"]
[Round "03"]
[TimeControl "180+1"]
[Date "2022.08.18"]
[WhiteClock "0:00:00"]
[BlackClock "0:00:00"]

1. e4 {[%clk 0:00:00]}  e6 {[%clk 0:00:00]} 2. d4 {[%clk 0:00:00]}  d5 {[%clk 0:00:00]} 3. Nc3 {[%clk 0:00:00]}  Nf6 {[%clk 0:00:00]} 4. Bg5 {[%clk 0:00:00]}  Be7 {[%clk 0:00:00]} 5. e5 {[%clk 0:00:00]}  Nfd7 {[%clk 0:00:00]} 6. h4 {[%clk 0:00:00]}  h6 {[%clk 0:00:00]} 7. Qh5 {[%clk 0:00:00]}  a6 {[%clk 0:00:00]} 8. O-O-O {[%clk 0:00:00]}  c5 {[%clk 0:00:00]} 9. dxc5 {[%clk 0:00:00]}  Nxc5 {[%clk 0:00:00]} 10. Nf3 {[%clk 0:00:00]}  Bd7 {[%clk 0:00:00]} 11. Kb1 {[%clk 0:00:00]}  Nc6 {[%clk 0:00:00]} 12. Bd3 {[%clk 0:00:00]}  Nxd3 {[%clk 0:00:00]} 13. Rxd3 {[%clk 0:00:00]}  b5 {[%clk 0:00:00]} 14. Rhd1 {[%clk 0:00:00]}  Rc8 {[%clk 0:00:00]} 15. Nxd5 {[%clk 0:00:00]}  exd5 {[%clk 0:00:00]} 16. Rxd5 {[%clk 0:00:00]}  Rc7 {[%clk 0:00:00]} 17. e6 {[%clk 0:00:00]}  O-O {[%clk 0:00:00]} 18. Rxd7 {[%clk 0:00:00]}  Rxd7 {[%clk 0:00:00]} 19. Rxd7 {[%clk 0:00:00]}  Qe8 {[%clk 0:00:00]} 20. Bxe7 {[%clk 0:00:00]}  Nxe7 {[%clk 0:00:00]} 21. exf7+ {[%clk 0:00:00]}  Rxf7 {[%clk 0:00:00]} 22. Ne5 {[%clk 0:00:00]}  g6 {[%clk 0:00:00]} 23. Qg4 {[%clk 0:00:00]}  Rxf2 {[%clk 0:00:00]} 24. Qe6+ {[%clk 0:00:00]}  Kh8 {[%clk 0:00:00]} 25. b3 {[%clk 0:00:00]} 1-0


[Site "https://www.chess.com"]